bitfinex/quotes_ETHUSD_20250529
["timestamp","ask_amount","ask_price","bid_price","bid_amount"]
[1748511765490,3.768,2725.0,2724.6,3.6702081]
[1748511766518,3.768,2725.0,2724.5,3.67033315]
[1748511766726,3.768,2725.0,2724.6,10.0]
[1748511766910,7.43779366,2725.0,2724.5,3.67037379]
[1748511767240,3.66986096,2724.9,2724.4,11.67042973]
[1748511767434,7.43777299,2725.0,2724.6,10.0]
[1748511768712,1.0513,2724.7,2724.4,8.0]
[1748511768924,1.0513,2724.7,2724.2,8.0]
[1748511769098,1.0513,2724.7,2724.4,8.0]
[1748511770114,1.0513,2724.7,2724.4,11.67044186]
[1748511770742,1.0057,2725.0,2724.6,17.43549752]
[1748511770938,1.0057,2725.0,2724.7,3.67012265]
[1748511771138,1.0057,2725.0,2724.7,10.0]
[1748511771441,1.0057,2725.0,2724.6,3.67019597]
[1748511772240,1.0057,2725.0,2724.6,2.232241]
[1748511772540,1.0057,2725.0,2724.6,3.67025846]
[1748511773648,1.0057,2725.0,2724.6,13.549633]
[1748511773806,1.0057,2725.0,2724.6,3.549633]
[1748511774458,4.67544416,2725.0,2724.6,3.549633]
[1748511774763,1.0057,2725.0,2724.6,3.6702557]
[1748511775564,1.0057,2725.0,2724.6,3.67022805]
[1748511776058,1.0057,2725.0,2724.7,3.67010013]
[1748511776463,1.0057,2725.0,2724.6,3.67022607]
[1748511776668,1.0057,2725.0,2724.6,20.784743]
[1748511776969,1.0057,2725.0,2724.6,3.67019389]
[1748511777468,4.67543353,2725.0,2724.5,13.67036168]
[1748511777779,4.67543353,2725.0,2724.6,3.549633]
[1748511777780,4.67542655,2725.0,2724.6,3.549633]
[1748511778470,1.0057,2725.0,2724.6,3.549633]
[1748511779145,4.67542569,2725.0,2724.6,3.549633]
[1748511779869,4.67542569,2725.0,2724.6,10.0]
[1748511780971,1.0057,2725.0,2724.4,8.0]
[1748511781123,3.66995431,2724.9,2724.4,8.0]
[1748511781324,3.67007881,2724.8,2724.4,8.0]
[1748511782887,4.75559412,2724.8,2724.3,8.0]
[1748511783072,3.67033065,2724.6,2724.1,0.60838156]
[1748511783278,3.67033065,2724.6,2724.1,10.60838156]
[1748511783279,1.0856,2724.6,2724.1,10.60838156]
[1748511783478,3.766,2724.5,2724.2,10.0]
[1748511783663,1.0396,2724.5,2724.2,10.0]
[1748511783858,1.0396,2724.5,2724.1,10.60838156]
[1748511784294,1.0396,2724.5,2724.1,14.27931514]
[1748511784477,1.0396,2724.5,2724.2,13.237358]
[1748511784678,1.0396,2724.5,2724.1,14.27931514]
[1748511785207,1.0396,2724.5,2724.2,10.0]
[1748511785354,1.0396,2724.5,2724.1,14.27931514]
[1748511785684,1.0396,2724.5,2724.2,10.0]
[1748511785886,1.0396,2724.5,2724.1,10.60838156]
[1748511785887,4.71001483,2724.5,2724.1,10.60838156]
[1748511786193,1.0396,2724.4,2724.1,0.60838156]
[1748511786358,4.71016173,2724.4,2724.1,0.60838156]
[1748511786554,1.0396,2724.4,2724.1,0.60838156]
[1748511786953,4.71040243,2724.2,2724.1,0.60838156]
[1748511788549,4.71040243,2724.2,2723.6,11.67156643]
[1748511788894,4.71040243,2724.2,2723.6,8.0]
[1748511788895,3.67102959,2724.1,2723.6,8.0]
[1748511789095,3.6710927,2724.0,2723.6,8.0]
[1748511789302,4.8056,2724.0,2723.6,8.0]
[1748511789470,4.8056,2724.0,2723.4,8.0]
[1748511789790,4.8056,2724.0,2723.7,8.0]
[1748511790206,1.0292,2723.8,2723.5,0.58534522]
[1748511790426,3.6715281,2723.7,2723.5,0.58534522]
[1748511790558,7.4375281,2723.7,2723.5,0.58534522]
[1748511790759,1.0237,2723.6,2723.5,0.58534522]
[1748511791556,1.0237,2723.6,2723.5,4.25709113]
[1748511792172,1.0237,2723.6,2723.5,0.58534522]
[1748511793708,3.67215041,2723.2,2723.1,0.24132562]
[1748511793908,4.72185041,2723.2,2723.1,0.24132562]
[1748511794069,4.75857598,2723.2,2723.1,0.05]
[1748511794490,1.0497,2722.4,2722.1,0.05]
[1748511794654,4.8157,2722.4,2722.1,0.05]
[1748511795472,8.48900472,2722.4,2722.1,0.05]
[1748511796757,8.48904432,2722.4,2722.1,0.05]
[1748511798201,4.8157,2722.4,2722.1,0.05]
[1748511799206,3.767,2722.3,2722.1,3.72355039]
[1748511799405,3.767,2722.3,2722.1,0.05]
[1748511799791,3.67282794,2722.7,2722.1,0.05]
[1748511799792,1.0768,2722.7,2722.1,0.05]
[1748511800101,1.21976033,2723.1,2722.4,6.52861923]
[1748511800102,3.767,2723.0,2722.4,6.52861923]
[1748511800306,7.43945306,2723.0,2722.6,10.0]
[1748511800516,1.0768,2723.1,2722.5,3.67299841]
[1748511800708,3.767,2723.0,2722.6,3.67287564]
[1748511801012,1.0768,2723.1,2722.4,6.03253]
[1748511801215,4.8438,2723.1,2722.6,3.67295967]
[1748511801924,8.51708566,2723.1,2722.6,3.67295967]
[1748511802142,8.51708566,2723.1,2722.5,3.67306342]
[1748511802416,8.51708566,2723.1,2722.5,3.67301517]
[1748511802825,3.67249068,2723.0,2722.5,10.0]
[1748511802980,3.67249068,2723.0,2722.3,3.67332533]
[1748511804003,8.51709357,2723.1,2722.4,3.67315935]
[1748511804321,3.67252274,2723.0,2722.4,3.67315935]
[1748511804508,3.767,2722.9,2722.5,3.67308466]
[1748511805084,3.767,2722.9,2722.4,3.67320852]
[1748511805505,3.767,2722.9,2722.3,13.673363]
[1748511805506,1.0719,2722.8,2722.3,11.67336443]
[1748511805738,1.0719,2722.8,2722.4,19.91754514]
[1748511806055,1.0719,2722.8,2722.5,10.0]
[1748511809237,1.0719,2722.8,2722.5,13.67307812]
[1748511809447,1.0719,2722.8,2722.5,3.67307812]
[1748511809607,1.0719,2722.8,2722.5,13.67307812]
[1748511810006,1.0719,2722.8,2722.4,3.67316384]
[1748511810338,1.0719,2722.8,2722.5,3.67309031]
[1748511811306,1.0719,2722.8,2722.4,3.67322819]
[1748511811707,1.0719,2722.8,2722.5,3.67299554]
[1748511814565,1.0719,2722.8,2722.4,3.67319155]
[1748511814711,1.0719,2722.8,2722.5,3.67308898]
[1748511815642,1.0719,2722.8,2722.4,3.6731744]
[1748511816240,4.74459615,2722.8,2722.3,13.67332884]
[1748511816553,1.0719,2722.8,2722.4,7.68517752]
[1748511816874,1.0719,2722.8,2722.4,3.67322176]
[1748511817869,1.0719,2722.8,2722.5,8.0]
[1748511818235,1.0719,2722.8,2722.5,3.67306326]
[1748511818433,1.0719,2722.8,2722.6,3.67287229]
[1748511819562,1.0719,2722.8,2722.5,3.67300191]
[1748511819930,1.0719,2722.8,2722.6,3.67289494]
[1748511820327,1.0719,2722.8,2722.5,3.67302388]
[1748511821368,3.767,2722.9,2722.6,3.67289611]
[1748511822569,4.68231984,2723.2,2722.7,3.67281015]
[1748511822771,4.68231984,2723.2,2722.3,0.0742]
[1748511822772,3.767,2723.0,2722.6,3.6728938]
[1748511822985,1.0101,2723.2,2722.7,3.67272379]
[1748511823169,1.0101,2723.2,2722.8,3.67267842]
[1748511823372,1.0425,2723.5,2722.8,8.0]
[1748511823687,1.0425,2723.5,2723.2,3.67207547]
[1748511824589,1.0425,2723.5,2723.1,3.67222575]
[1748511826096,4.71424889,2723.5,2723.0,13.6723731]
[1748511826593,1.0425,2723.5,2723.0,13.6723731]
[1748511827097,1.0425,2723.5,2723.2,3.67214569]
[1748511828197,1.0425,2723.5,2723.1,3.67221558]
[1748511829259,1.0084,2723.9,2723.3,3.67192395]
[1748511829493,3.67139996,2723.8,2723.3,3.67192395]
[1748511829791,3.6714763,2723.7,2723.2,3.67214067]
[1748511830166,3.6714763,2723.7,2723.2,13.67214067]
[1748511830367,3.67161289,2723.6,2723.1,3.6722313]
[1748511831321,3.67161289,2723.6,2723.2,1.9492312]
[1748511831621,1.0718,2723.4,2723.0,11.67229269]
[1748511832713,1.0718,2723.4,2723.0,8.0]
[1748511833520,1.0718,2723.4,2723.0,11.67235543]
[1748511835196,4.71949615,2723.6,2723.1,3.67226852]
[1748511836013,1.0478,2723.6,2723.0,11.67239748]
[1748511836228,1.0478,2723.6,2723.1,3.67218452]
[1748511836796,3.67175163,2723.5,2723.0,11.67239026]
[1748511836992,4.71948526,2723.6,2723.0,11.67239026]
[1748511837694,4.71948526,2723.6,2723.1,3.672264]
[1748511838744,1.0478,2723.6,2723.0,11.67239518]
[1748511838898,1.89623226,2723.6,2723.0,11.67239518]
[1748511839097,3.67183286,2723.5,2723.0,11.67239518]
[1748511841454,3.67183286,2723.5,2723.0,8.0]
[1748511841594,3.67185987,2723.5,2723.0,8.0]
[1748511841930,3.67185987,2723.5,2723.0,11.67241053]
[1748511842233,4.97234265,2723.5,2723.0,11.67241053]
[1748511843998,3.67189051,2723.4,2723.0,8.0]
[1748511844694,4.9722715,2723.5,2723.0,11.67240235]
[1748511844896,1.30048278,2723.5,2723.1,3.67225151]
[1748511845929,4.97222909,2723.5,2723.0,12.23422051]
[1748511846339,1.30048278,2723.5,2723.0,8.56186058]
[1748511846535,4.97230659,2723.5,2723.0,8.0]
[1748511846698,5.67026739,2723.4,2723.0,8.0]
[1748511846898,3.67210326,2723.3,2723.0,8.0]
[1748511847100,4.7932,2723.4,2723.1,3.67220088]
[1748511847298,4.7932,2723.4,2723.0,11.67235765]
[1748511847500,4.7932,2723.4,2723.1,3.6722794]
[1748511847831,1.0292,2723.4,2723.1,3.6722794]
[1748511848047,4.7932,2723.4,2723.1,3.6722794]
[1748511848242,3.764,2723.4,2723.1,3.6722794]
[1748511851361,3.764,2723.4,2723.0,11.67239207]
[1748511854867,3.67176691,2723.5,2723.0,11.67239207]
[1748511855067,7.43576691,2723.5,2723.0,11.67239207]
[1748511855592,8.65476192,2723.5,2723.0,11.67239207]
[1748511855763,4.98299501,2723.5,2723.0,8.0]
[1748511855949,8.65482226,2723.5,2723.0,11.67241701]
[1748511858082,3.6719153,2723.4,2723.0,8.0]
[1748511858369,8.65480256,2723.5,2723.0,8.0]
[1748511858574,8.65480256,2723.5,2723.0,11.67239893]
[1748511859379,4.98299501,2723.5,2723.1,3.67228103]
[1748511859577,3.764,2723.5,2723.1,3.67228103]
[1748511859965,3.764,2723.5,2723.0,11.67241355]
[1748511859966,7.4357968,2723.5,2723.0,11.67241355]
[1748511860283,1.0827,2723.6,2723.1,3.6722729]
[1748511860610,7.43468345,2723.6,2723.2,10.168]
[1748511860755,7.43468345,2723.6,2723.2,10.0]
[1748511864770,7.43476248,2723.5,2723.0,11.84036094]
[1748511866091,7.43476248,2723.5,2723.1,2.086259]
[1748511866398,3.763,2723.5,2723.1,2.227059]
[1748511866567,3.763,2723.5,2723.2,10.0]
[1748511866891,7.43475454,2723.5,2723.2,10.0]
[1748511867187,7.43475454,2723.5,2723.1,2.23095]
[1748511867394,7.43475454,2723.5,2723.2,10.0]
[1748511867691,7.43475454,2723.5,2723.0,11.84036755]
[1748511867991,0.9927,2723.3,2723.0,8.0]
[1748511868169,4.66475538,2723.3,2723.0,8.0]
[1748511868496,0.9927,2723.3,2723.0,8.0]
[1748511868993,4.7547,2723.3,2723.0,8.0]
[1748511873410,4.7157757,2723.3,2723.0,8.0]
[1748511874882,0.9537757,2723.3,2723.0,8.0]
[1748511875085,3.762,2723.3,2723.1,3.6722795]
[1748511875402,3.762,2723.3,2723.0,11.67234781]
[1748511876711,3.762,2723.3,2723.1,3.6722076]
[1748511876896,3.762,2723.3,2723.0,11.67234882]
[1748511877405,3.762,2723.3,2723.0,8.0]
[1748511877886,3.762,2723.3,2723.0,11.67234859]
[1748511880014,0.9886,2723.5,2723.0,8.0]
[1748511880227,1.0399,2723.7,2723.1,3.83463619]
[1748511880510,1.0399,2723.7,2723.3,3.67197698]
[1748511880715,3.67073905,2724.3,2723.1,3.83463619]
[1748511880716,3.762,2723.9,2723.5,3.67166132]
[1748511880882,4.71095822,2724.1,2723.5,3.67161949]
[1748511881077,5.64732945,2724.1,2723.5,3.67161949]
[1748511881301,3.762,2724.0,2723.5,3.83401949]
[1748511881502,5.64732945,2724.1,2723.5,3.83401949]
[1748511881721,3.762,2724.0,2723.7,3.67147051]
[1748511881914,1.97627123,2724.1,2723.5,0.1624]
[1748511882218,3.762,2724.0,2723.8,3.67127439]
[1748511882419,3.762,2724.2,2723.6,3.6716111]
[1748511882720,3.67060011,2724.4,2723.4,10.0]
[1748511882721,3.6705398,2724.4,2723.9,3.8335634]
[1748511882880,3.761,2724.2,2723.9,3.8335634]
[1748511883229,1.0861,2724.5,2723.9,0.1624]
[1748511883409,3.761,2724.4,2724.1,3.67086405]
[1748511883578,1.0861,2724.5,2724.0,3.67104613]
[1748511883775,3.761,2724.5,2724.2,3.67072221]
[1748511883978,3.761,2724.5,2724.1,3.67087908]
[1748511886515,7.4312967,2724.6,2724.1,3.67087908]
[1748511887029,3.761,2724.6,2724.1,3.67087908]
[1748511888125,3.67026352,2724.6,2724.0,3.67106208]
[1748511888289,7.43126352,2724.6,2723.9,0.1624]
[1748511888495,4.72489407,2724.7,2724.1,3.67084738]
[1748511888691,3.67002608,2724.8,2724.1,3.67084738]
[1748511888692,3.67000474,2724.8,2724.3,3.83300195]
[1748511889115,7.479906,2724.9,2724.4,3.67051801]
[1748511889317,3.67001066,2724.8,2724.3,3.832992]
[1748511890607,3.67001066,2724.8,2724.0,8.0]
[1748511890928,3.67001066,2724.8,2724.2,3.67071371]
[1748511891904,3.67014337,2724.7,2724.2,10.0]
[1748511892305,3.67014337,2724.7,2724.1,13.67084326]
[1748511892505,1.0162,2724.6,2724.2,6.29407923]
[1748511892734,8.44624394,2724.8,2724.2,10.0]
[1748511893033,8.44624394,2724.8,2724.2,3.67072322]
[1748511893196,8.44624394,2724.8,2724.2,20.83846081]
[1748511893395,8.44624394,2724.8,2724.2,3.67071281]
[1748511894330,3.67013109,2724.7,2724.2,3.67071281]
[1748511895563,4.7762,2724.8,2724.2,3.67071281]
[1748511896040,3.67015518,2724.7,2724.2,3.67071281]
[1748511896203,3.67015518,2724.7,2724.2,10.0]
[1748511896406,3.67015518,2724.7,2724.2,2.25448]
[1748511896827,3.67015518,2724.7,2724.2,3.67080188]
[1748511899035,3.67015518,2724.7,2724.2,10.0]
[1748511899234,3.67028877,2724.6,2724.2,10.0]
[1748511899410,3.67028877,2724.6,2724.1,13.67086296]
[1748511899610,3.67028877,2724.6,2723.9,7.43018536]
[1748511899611,1.0272,2724.6,2723.6,8.982]
[1748511899920,3.67039823,2724.5,2724.0,8.0]
[1748511900406,3.67039823,2724.5,2724.0,3.67107104]
[1748511900612,4.6288393,2724.5,2724.1,8.0]
[1748511902833,0.95844107,2724.5,2724.1,8.0]
[1748511903549,0.95844107,2724.5,2724.1,3.67093537]
[1748511904116,4.7852,2724.6,2724.3,8.0]
[1748511904459,1.0601,2724.8,2724.5,3.67026954]
[1748511904673,1.0601,2724.8,2724.3,8.0]
[1748511904812,1.0601,2724.8,2724.6,3.6701952]
[1748511905015,0.05,2724.9,2724.4,0.52583267]
[1748511905324,0.05,2724.9,2724.4,8.52583267]
[1748511905699,0.05,2724.9,2724.7,8.0]
[1748511906551,0.05,2724.9,2724.6,8.0]
[1748511906753,0.05,2724.9,2724.4,12.19629911]
[1748511906948,3.71986483,2724.9,2724.4,12.19629911]
[1748511907107,0.05,2724.9,2724.4,12.19629911]
[1748511908254,3.6700716,2724.8,2724.4,0.52583267]
[1748511908455,1.0073,2724.8,2724.4,0.52583267]
[1748511908827,3.67020436,2724.7,2724.3,10.0]
[1748511909035,3.67012956,2724.7,2724.2,3.67075019]
[1748511909561,4.67735683,2724.8,2724.2,3.67075019]
[1748511909760,5.51708128,2724.8,2724.2,3.67075019]
[1748511910467,3.67014276,2724.7,2724.2,3.67075019]
[1748511910758,3.67014276,2724.7,2724.2,11.67075019]
[1748511910943,5.5170802,2724.8,2724.4,8.0]
[1748511911149,1.84702445,2724.8,2724.4,8.5297395]
[1748511911369,1.84702445,2724.8,2724.4,4.2002385]
[1748511911875,1.84702445,2724.8,2724.5,3.67030481]
[1748511912164,0.05,2724.9,2724.5,8.0]
[1748511912336,3.71992659,2724.9,2724.4,8.5297395]
[1748511912733,3.71992659,2724.9,2724.4,4.20024443]
[1748511913229,0.05,2724.9,2724.4,4.20024443]
[1748511913425,0.05,2724.9,2724.8,16.65612512]
[1748511913625,0.05,2724.9,2724.8,14.92638812]
[1748511914252,0.05,2724.9,2724.8,14.70879312]
[1748511915938,0.05,2724.9,2724.8,11.66999412]
[1748511916140,0.05,2724.9,2724.8,8.0]
[1748511916537,0.05,2724.9,2724.8,11.66999412]
[1748511917941,0.05,2724.9,2724.8,8.0]
[1748511918180,0.05,2724.9,2724.8,11.66999412]
[1748511919479,0.05,2724.9,2724.4,0.5297395]
[1748511919780,0.05,2724.9,2724.4,4.20023402]
[1748511919781,1.0728,2724.8,2724.4,4.20023402]
[1748511920078,1.55207153,2724.8,2724.5,8.0]
[1748511920951,1.55207153,2724.8,2724.5,3.67038169]
[1748511921161,0.05,2724.9,2724.7,3.67001039]
[1748511921475,0.05,2724.9,2724.7,3.67002545]
[1748511921681,0.05,2724.9,2724.7,13.67002545]
[1748511921985,0.05,2724.9,2724.8,3.66999412]
[1748511922545,0.05,2724.9,2724.7,11.67009365]
[1748511923090,0.05,2724.9,2724.6,11.67020339]
[1748511923385,0.05,2724.9,2724.6,8.0]
[1748511923679,0.05,2724.9,2724.7,8.0]
[1748511924183,0.05,2724.9,2724.4,0.5297395]
[1748511924345,1.0804,2724.8,2724.6,8.0]
[1748511924766,1.0804,2724.8,2724.5,10.0]
[1748511924978,1.0804,2724.8,2724.4,0.5297395]
[1748511925185,4.75048638,2724.8,2724.4,0.5297395]
[1748511925363,1.0804,2724.8,2724.5,10.0]
[1748511925575,1.0804,2724.8,2724.4,0.5297395]
[1748511925819,1.56041668,2724.8,2724.4,0.5297395]
[1748511925971,3.67034073,2724.6,2724.4,0.5297395]
[1748511926990,4.73328166,2724.7,2724.4,0.5297395]
[1748511927197,1.0631,2724.7,2724.4,0.5297395]
[1748511927413,3.67027993,2724.6,2724.4,0.5297395]
[1748511927731,1.88863799,2724.5,2724.4,0.5297395]
[1748511928009,1.0397,2724.5,2724.4,0.5297395]
[1748511928675,1.0397,2724.5,2724.1,3.67092258]
[1748511928864,1.0397,2724.5,2723.9,9.453612]
[1748511929061,1.0397,2724.5,2723.9,7.394771]
[1748511929264,1.0397,2724.5,2723.8,11.756]
[1748511929265,1.0397,2724.5,2724.2,10.0]
[1748511929583,1.0397,2724.5,2724.1,3.67083938]
[1748511930122,1.06,2724.7,2724.3,3.67059471]
[1748511930340,4.73014998,2724.7,2724.2,10.0]
[1748511930619,4.73014998,2724.7,2723.8,11.756]
[1748511930620,1.06,2724.4,2724.1,10.0]
[1748511930963,3.6706786,2724.3,2724.1,10.0]
[1748511931166,3.6706786,2724.3,2723.6,4.65057297]
[1748511931167,4.77878571,2724.3,2723.6,0.979]
[1748511931408,3.67080559,2724.2,2723.6,0.979]
[1748511931575,3.67080559,2724.2,2723.6,4.65050723]
[1748511931576,0.83553116,2724.2,2723.6,4.65050723]
[1748511931780,0.83553116,2724.2,2723.7,10.0]
[1748511932102,4.14330266,2724.6,2724.0,3.67100863]
[1748511932103,4.7808,2724.5,2724.0,3.67100863]
[1748511932266,1.0248,2724.5,2724.1,3.67090632]
[1748511932901,1.0248,2724.5,2724.0,3.67104259]
[1748511933127,4.69521224,2724.5,2723.9,13.67114397]
[1748511933286,4.69521224,2724.5,2723.9,3.67114397]
[1748511933470,5.95465357,2724.5,2723.9,3.67114397]
[1748511934184,5.95465357,2724.5,2724.0,10.0]
[1748511934508,3.67073891,2724.3,2724.0,10.0]
[1748511934809,3.67073891,2724.3,2723.9,10.0]
[1748511935168,5.95467232,2724.5,2723.6,3.756]
[1748511935370,4.69525165,2724.5,2723.9,3.67109381]
[1748511935719,1.0248,2724.5,2723.9,10.0909]
[1748511935884,3.67060396,2724.4,2723.8,3.67124236]
[1748511936510,3.67060396,2724.4,2723.9,6.61340545]
[1748511936669,3.67067217,2724.3,2723.9,10.0]
[1748511936870,3.67067217,2724.3,2723.8,3.67126237]
[1748511937095,3.67067217,2724.3,2723.4,0.979]
[1748511937096,4.77445026,2724.1,2723.5,15.42764038]
[1748511937313,4.77445026,2724.1,2723.6,3.804573]
[1748511937518,4.77445026,2724.1,2723.5,15.42764038]
[1748511937725,1.1034,2724.1,2723.7,13.67138106]
[1748511938017,1.1034,2724.1,2723.7,3.67138106]
[1748511938212,1.1034,2724.1,2723.8,3.67129691]
[1748511938516,4.69457269,2724.3,2723.8,13.67129691]
[1748511938717,3.67090752,2724.2,2723.6,5.88248466]
[1748511938883,4.69465538,2724.3,2723.7,3.67145792]
[1748511939084,3.67081155,2724.2,2723.7,13.58903]
[1748511939290,4.95720561,2724.2,2723.8,10.0]
[1748511939473,4.95720561,2724.2,2723.7,13.36203]
[1748511939674,4.95720561,2724.2,2723.8,10.0]
[1748511939870,1.28639406,2724.2,2723.6,15.805813]
[1748511940075,3.67081419,2724.2,2723.8,10.0]
[1748511940300,3.67081419,2724.2,2723.7,3.67142105]
[1748511940616,3.67081419,2724.2,2723.6,13.6715938]
[1748511941615,4.76136057,2724.1,2723.6,10.0]
[1748511942476,4.76136057,2724.1,2723.7,10.0]
[1748511942673,1.93360713,2724.1,2723.7,10.0]
[1748511942903,4.7162763,2723.7,2723.6,10.0]
[1748511943086,1.0448,2723.7,2723.3,8.0]
[1748511943289,1.0448,2723.7,2723.5,10.0]
[1748511943515,1.0448,2723.7,2723.3,18.0]
[1748511943718,1.0448,2723.7,2723.4,8.0]
[1748511943929,1.0448,2723.7,2723.3,11.67195164]
[1748511944081,1.0448,2723.7,2723.5,10.0]
[1748511944280,1.0448,2723.7,2723.4,2.774189]
[1748511944583,1.0448,2723.7,2723.5,10.0]
[1748511944887,1.51640359,2723.7,2723.2,0.19134344]
[1748511945096,1.51640359,2723.7,2722.8,0.55393452]
[1748511945097,1.0323,2723.5,2723.0,3.67241711]
[1748511945278,1.0323,2723.5,2723.1,10.0]
[1748511945478,4.70404608,2723.5,2723.1,10.0]
[1748511945914,3.67190947,2723.4,2723.0,12.370617]
[1748511946081,3.67190947,2723.4,2723.0,8.0]
[1748511946459,4.7040977,2723.5,2723.0,11.6723911]
[1748511946889,1.0323,2723.5,2723.0,11.67236482]
[1748511947297,4.70404757,2723.5,2723.0,11.67236482]
[1748511948128,1.0323,2723.5,2723.0,11.67236482]
[1748511949190,4.70416353,2723.5,2723.0,8.0]
[1748511949392,1.0323,2723.5,2723.0,11.67239893]
[1748511949741,1.0323,2723.5,2723.3,3.67201523]
[1748511950086,1.0323,2723.5,2723.2,13.67208289]
[1748511950427,1.0323,2723.5,2723.2,3.67208289]
[1748511950775,4.70406672,2723.5,2723.0,8.0]
[1748511951302,1.0323,2723.5,2723.0,11.67239786]
[1748511952707,4.70406243,2723.5,2723.0,11.67239786]
[1748511952908,1.0323,2723.5,2723.1,3.67226644]
[1748511953113,1.0293,2723.8,2723.1,0.15952252]
[1748511953324,1.0293,2724.1,2723.7,3.67139511]
[1748511953642,1.0293,2724.1,2723.8,3.67125847]
[1748511954015,1.0293,2724.1,2723.7,3.6714032]
[1748511954212,1.0293,2724.1,2723.9,3.6711991]
[1748511954826,3.6705587,2724.4,2723.7,3.67138413]
[1748511954827,1.076,2724.4,2723.8,27.771625]
[1748511955138,1.076,2724.4,2724.1,3.67086077]
[1748511955642,7.4758813,2724.9,2724.3,3.6705597]
[1748511955812,1.0565,2724.8,2724.3,3.6705597]
[1748511956017,1.0565,2724.8,2724.4,3.6705311]
[1748511956342,1.0565,2724.8,2724.4,3.67046029]
[1748511956651,1.0565,2724.8,2724.3,13.67061893]
[1748511956807,1.0565,2724.8,2724.4,15.86681287]
[1748511957007,1.0565,2724.8,2724.5,3.67036902]
[1748511957537,0.05,2724.9,2724.6,3.67025922]
[1748511958240,0.05,2724.9,2724.6,3.67026352]
[1748511958739,0.05,2724.9,2724.6,3.67022291]
[1748511958938,0.05,2724.9,2724.8,3.66999412]
[1748511959837,0.05,2724.9,2724.8,7.04459412]
[1748511961615,0.05,2724.9,2724.8,6.44674012]
[1748511961806,0.05,2724.9,2724.6,10.0]
[1748511962007,0.05,2724.9,2724.7,9.02957974]
[1748511962346,0.05,2724.9,2724.7,3.67011874]
[1748511963010,0.05,2724.9,2724.6,10.0]
[1748511963236,0.05,2724.9,2724.7,2.61278]
[1748511963435,0.05,2724.9,2724.7,6.28283427]
[1748511963709,0.05,2724.9,2724.7,3.67005427]
[1748511964727,0.05,2724.9,2724.7,8.0]
[1748511965146,0.05,2724.9,2724.7,11.67011148]
[1748511965321,0.05,2724.9,2724.5,8.0]
[1748511965525,0.05,2724.9,2724.7,15.86740526]
[1748511965722,0.05,2724.9,2724.7,3.67010526]
[1748511966553,0.05,2724.9,2724.7,10.0]
[1748511966735,0.05,2724.9,2724.7,8.0]
[1748511969589,0.05,2724.9,2724.7,3.67008852]
[1748511969757,0.05,2724.9,2724.8,10.0]
[1748511971467,0.05,2724.9,2724.8,11.66999412]
[1748511971671,0.05,2724.9,2724.8,8.0]
[1748511972259,0.05,2724.9,2724.8,11.66999412]
[1748511973077,0.05,2724.9,2724.8,12.3091486]
[1748511973247,0.05,2724.9,2724.8,11.79279412]
[1748511973985,0.05,2724.9,2724.8,18.63529812]
[1748511974342,0.05,2724.9,2724.8,18.51249812]
[1748511975558,0.05,2724.9,2724.8,22.93829812]
[1748511975757,0.35026097,2725.8,2724.8,22.93829812]
[1748511975758,0.35026097,2725.8,2725.7,25.14870333]
[1748511975971,0.35026097,2725.8,2725.7,17.10409633]
[1748511976770,0.35026097,2725.8,2725.7,16.65945933]
[1748511977879,0.35026097,2725.8,2725.7,11.603998]
[1748511978106,0.35026097,2725.8,2725.7,14.94478033]
[1748511978671,0.35026097,2725.8,2725.7,14.41311533]
[1748511978904,0.35026097,2725.8,2725.7,10.744333]
[1748511979105,0.35026097,2725.8,2725.7,14.41311533]
[1748511979287,0.35026097,2725.8,2725.7,13.84336633]
[1748511979725,0.35026097,2725.8,2725.7,13.96588133]
[1748511985816,0.35026097,2725.8,2725.7,14.60018133]
[1748511986683,0.05,2726.9,2726.0,0.55]
[1748511986879,0.05,2726.9,2726.7,3.66740344]
[1748511987300,0.05,2726.9,2726.6,11.66745725]
[1748511987502,0.05,2726.9,2726.8,8.0]
[1748511987700,0.05,2726.9,2726.8,11.66730233]
[1748511988019,0.05,2726.9,2726.8,18.14310833]
[1748511988221,0.05,2726.9,2726.8,16.22591333]
[1748511988440,0.05,2726.9,2726.8,10.706278]
[1748511990012,0.05,2726.9,2726.8,14.37358033]
[1748511990414,0.05,2726.9,2726.8,15.00788033]
[1748511992162,0.05,2726.9,2726.8,14.45788033]
[1748511992308,0.05,2726.9,2726.8,19.18388033]
[1748511994643,0.05,2726.9,2726.8,11.682278]
[1748511994852,0.05,2726.9,2726.8,15.13166733]
[1748511995181,0.05,2726.9,2726.8,12.660148]
[1748511995528,0.05,2726.9,2726.8,16.32745033]
[1748511995726,0.05,2726.9,2726.8,12.660148]
[1748511995988,0.05,2726.9,2726.8,15.13867433]
[1748512005443,0.05,2726.9,2726.8,15.22297433]
[1748512006212,0.05,2726.9,2726.8,15.77297433]
[1748512008566,0.05,2726.9,2726.8,7.43492089]
[1748512010268,0.05,2726.9,2726.8,11.18292089]
[1748512010643,0.05,2726.9,2726.8,19.18292089]
[1748512011932,0.05,2726.9,2726.8,15.43492089]
[1748512012241,0.05,2726.9,2726.8,14.24697433]
[1748512012439,0.05,2726.9,2726.8,18.88667433]
[1748512013743,0.05,2726.9,2726.8,18.88567433]
[1748512015781,0.05,2726.9,2726.8,18.88467433]
[1748512016000,0.05,2726.9,2726.8,15.13767433]
[1748512016199,0.05,2726.9,2726.8,18.88467433]
[1748512017027,0.05,2726.9,2726.8,17.90967433]
[1748512018635,0.05,2726.9,2726.8,17.73085733]
[1748512020469,1.1235,2726.9,2726.8,8.0]
[1748512021374,1.1235,2726.9,2726.4,3.794982]
[1748512021575,1.0118,2726.7,2726.3,10.0]
[1748512021734,4.67926988,2726.7,2726.2,12.64303853]
[1748512021932,1.0465,2726.4,2726.2,0.975]
[1748512022262,4.71434087,2726.4,2726.2,0.975]
[1748512022449,0.47143409,2726.3,2726.2,0.975]
[1748512023375,1.0465,2726.4,2726.2,0.975]